[Event "Dutch Open-ch 2019"]
[Site "Dieren"]
[Date "2019.07.25"]
[Round "3.13"]
[White "Maris, Ivo"]
[Black "Van Baar, Esper"]
[Result "1-0"]
[ECO "A10"]
[WhiteElo "2399"]
[BlackElo "2108"]
[Annotator "NA"]
[PlyCount "65"]
[EventDate "2019.07.23"]
[EventType "swiss"]
[EventCountry "NED"]
[SourceTitle "playchess.com"]
[Source "ChessBase"]
[SourceQuality "1"]
[TimeControl "40/5400+30:1800+30"]

1. c4 {[%emt 0:05:05]} g6 {[%emt 0:00:00]} 2. g3 {[%emt 0:02:27]} Bg7 {[%emt 0:00:06]} 3. Bg2 {[%emt 0:00:04]} d6 {[%emt 0:00:26]} 4. Nc3 {[%emt 0:00:22]} c5 {[%emt 0:01:06]} 5. a3 {[%emt 0:03:11]} a5 {[%emt 0:08:18]} 6. Nf3 {[%emt 0:02:02]} Nc6 {[%emt 0:00:48]} 7. O-O {[%emt 0:00:46]} e5 {[%emt 0:00:56]} 8. e3 {[%emt 0:02:56]} Be6 {[%emt 0:02:59]} 9. Qb3 {[%emt 0:04:13]} Nge7 {[%emt 0:03:25]} 10. Ng5 {[%emt 0:08:11]} Bc8 {[%emt 0:02:29]} 11. Nb5 {[%emt 0:02:04]} Na7 {[%emt 0:28:05]} 12. Ne4 {[%emt 0:06:15]} Nxb5 {[%emt 0:00:22]} 13. Qxb5+ {[%emt 0:00:34]} Kf8 {[%emt 0:00:08]} 14. Qb3 {[%emt 0:01:20]} Nc6 {[%emt 0:02:28]} 15. f4 {[%emt 0:05:47]} f5 {[%emt 0:06:58]} 16. Nc3 {[%emt 0:04:53]} exf4 {[%emt 0:04:58]} 17. gxf4 {[%emt 0:03:56]} Kf7 {[%emt 0:01:43]} 18. Bd5+ {[%emt 0:02:08]} Kf8 {[%emt 0:00:54]} 19. Nb5 {[%emt 0:00:55]} Na7 {[%emt 0:03:24]} 20. Nc3 {[%emt 0:01:51]} Rb8 {[%emt 0:01:27]} 21. Ne2 {[%emt 0:02:30]} Bd7 {[%emt 0:02:21]} 22. d4 {[%emt 0:03:00]} Bc6 {[%emt 0:00:31]} 23. dxc5 {[%emt 0:01:27]} Bxd5 {[%emt 0:01:14]} 24. cxd5 {[%emt 0:00:10]} dxc5 {[%emt 0:00:05]} 25. a4 {[%emt 0:00:50]} Nc8 {[%emt 0:01:42]} 26. e4 {[%emt 0:03:51]} Ne7 {[%emt 0:06:00]} 27. Be3 {[%emt 0:01:49]} b6 {[%emt 0:00:09]} 28. Rad1 {[%emt 0:01:39]} fxe4 {[%emt 0:01:21]} 29. f5 {[%emt 0:00:04]} Nxf5 {[%emt 0:01:43]} 30. Nf4 {[%emt 0:02:54]} c4 {[%emt 0:07:27]} 31. Qxc4 {[%emt 0:02:58]} Nxe3 {[%emt 0:02:21]} 32. Qxe4 {[%emt 0:01:10]} Qg5+ {[%emt 0:00:44]} 33. Kh1 {[%emt 0:00:14]} 1-0

[Event "Dutch Open-ch 2019"]
[Site "Dieren"]
[Date "2019.07.25"]
[Round "3.15"]
[White "Tiwari, Ashwani"]
[Black "Grooten, Herman"]
[Result "0-1"]
[ECO "A08"]
[WhiteElo "2089"]
[BlackElo "2310"]
[Annotator "NA"]
[PlyCount "100"]
[EventDate "2019.07.23"]
[EventType "swiss"]
[EventCountry "NED"]
[SourceTitle "playchess.com"]
[Source "ChessBase"]
[SourceQuality "1"]
[TimeControl "40/5400+30:1800+30"]

1. e4 {[%emt 0:09:57]} e6 {[%emt 0:00:00]} 2. d3 {[%emt 0:00:19]} d5 {[%emt 0:00:00]} 3. Nd2 {[%emt 0:00:09]} c5 {[%emt 0:00:21]} 4. Ngf3 {[%emt 1:21:35]} Nc6 {[%emt 0:00:26]} 5. g3 {[%emt 0:00:00]} g6 {[%emt 0:00:46]} 6. Bg2 {[%emt 0:00:00]} Bg7 {[%emt 0:00:14]} 7. O-O {[%emt 0:00:00]} Nge7 {[%emt 0:00:11]} 8. Re1 {[%emt 0:00:00]} b6 {[%emt 0:01:37]} 9. e5 {[%emt 0:00:00]} Qc7 {[%emt 0:00:48]} 10. Qe2 {[%emt 0:00:00]} g5 {[%emt 0:04:33]} 11. Nxg5 {[%emt 0:00:00]} Qxe5 {[%emt 0:01:05]} 12. Qxe5 {[%emt 0:00:00]} Nxe5 {[%emt 0:02:09]} 13. Nc4 {[%emt 0:00:00]} Nxc4 {[%emt 0:17:26]} 14. dxc4 {[%emt 0:00:00]} Bb7 {[%emt 0:01:08]} 15. cxd5 {[%emt 0:00:00]} Bxd5 {[%emt 0:00:14]} 16. c3 {[%emt 0:00:00]} h6 {[%emt 0:09:43]} 17. Nh3 {[%emt 0:00:00]} Bxg2 {[%emt 0:00:54]} 18. Kxg2 {[%emt 0:00:00]} O-O-O {[%emt 0:00:36]} 19. Nf4 {[%emt 0:00:00]} h5 {[%emt 0:01:27]} 20. h4 {[%emt 0:00:00]} Nf5 {[%emt 0:02:21]} 21. Kf1 {[%emt 0:00:00]} Rd7 {[%emt 0:05:22]} 22. Ke2 {[%emt 0:00:11]} e5 {[%emt 0:06:09]} 23. Ng2 {[%emt 0:01:20]} Rhd8 {[%emt 0:04:19]} 24. Ne3 {[%emt 0:01:13]} Ne7 {[%emt 0:02:15]} 25. Rd1 {[%emt 0:00:28]} Rxd1 {[%emt 0:01:16]} 26. Nxd1 {[%emt 0:00:09]} Kb7 {[%emt 0:02:17]} 27. Bg5 {[%emt 0:01:10]} f6 {[%emt 0:00:11]} 28. Bd2 {[%emt 0:01:03]} e4 {[%emt 0:02:34]} 29. Ne3 {[%emt 0:01:18]} f5 {[%emt 0:05:44]} 30. Rd1 {[%emt 0:00:31]} Kc6 {[%emt 0:03:57]} 31. Ng2 {[%emt 0:00:49]} Ng6 {[%emt 0:04:12]} 32. Bg5 {[%emt 0:01:21]} Rxd1 {[%emt 0:00:43]} 33. Kxd1 {[%emt 0:00:04]} Kd5 {[%emt 0:00:24]} 34. a4 {[%emt 0:02:21]} Be5 {[%emt 0:02:22]} 35. Kc2 {[%emt 0:00:42]} a6 {[%emt 0:02:12]} 36. Ne3+ {[%emt 0:01:43]} Ke6 {[%emt 0:00:07]} 37. Nc4 {[%emt 0:01:30]} Bc7 {[%emt 0:02:16]} 38. b4 {[%emt 0:00:32]} cxb4 {[%emt 0:13:13]} 39. cxb4 {[%emt 0:00:06]} Ne5 {[%emt 0:00:38]} 40. Nxe5 {[%emt 0:00:56]} Bxe5 {[%emt 0:00:08]} 41. Be3 {[%emt 0:25:08]} b5 {[%emt 0:00:15]} 42. axb5 {[%emt 0:00:04]} axb5 {[%emt 0:00:04]} 43. Kd2 {[%emt 0:06:16]} Kd5 {[%emt 0:00:13]} 44. Ke2 {[%emt 0:00:29]} Bd6 {[%emt 0:08:11]} 45. Bd2 {[%emt 0:00:33]} Kd4 {[%emt 0:01:39]} 46. Be1 {[%emt 0:00:26]} Kc4 {[%emt 0:06:15]} 47. f3 {[%emt 0:00:17]} exf3+ {[%emt 0:01:27]} 48. Kxf3 {[%emt 0:00:39]} Bxb4 {[%emt 0:00:20]} 49. Bxb4 {[%emt 0:00:35]} Kxb4 {[%emt 0:00:04]} 50. Kf4 {[%emt 0:00:20]} Kc4 {[%emt 0:00:51]} 0-1

[Event "Dutch Open-ch 2019"]
[Site "Dieren"]
[Date "2019.07.25"]
[Round "3.16"]
[White "Shakhverdian, William"]
[Black "Sharma, Dinesh K."]
[Result "0-1"]
[ECO "D17"]
[WhiteElo "2001"]
[BlackElo "2299"]
[Annotator "NA"]
[PlyCount "100"]
[EventDate "2019.07.23"]
[EventType "swiss"]
[EventCountry "NED"]
[SourceTitle "playchess.com"]
[Source "ChessBase"]
[SourceQuality "1"]
[TimeControl "40/5400+30:1800+30"]

1. d4 {[%emt 0:00:00]} Nf6 {[%emt 0:12:26]} 2. Nf3 {[%emt 0:00:00]} d5 {[%emt 0:00:08]} 3. c4 {[%emt 0:00:00]} c6 {[%emt 0:00:15]} 4. Nc3 {[%emt 0:00:00]} dxc4 {[%emt 0:00:46]} 5. a4 {[%emt 0:00:05]} Bf5 {[%emt 0:00:04]} 6. Ne5 {[%emt 0:01:18]} Nbd7 {[%emt 0:00:16]} 7. Nxc4 {[%emt 0:00:07]} Qc7 {[%emt 0:00:09]} 8. g3 {[%emt 0:02:06]} e5 {[%emt 0:00:31]} 9. dxe5 {[%emt 0:06:25]} Nxe5 {[%emt 0:00:05]} 10. Bf4 {[%emt 0:03:34]} Nfd7 {[%emt 0:00:22]} 11. Bg2 {[%emt 0:02:24]} f6 {[%emt 0:00:23]} 12. O-O {[%emt 0:04:50]} g5 {[%emt 0:03:07]} 13. Bxe5 {[%emt 0:05:00]} Nxe5 {[%emt 0:00:33]} 14. Nxe5 {[%emt 0:01:54]} Qxe5 {[%emt 0:00:55]} 15. a5 {[%emt 0:00:35]} a6 {[%emt 0:07:53]} 16. Qa4 {[%emt 0:06:08]} Bd7 {[%emt 0:09:31]} 17. Rfd1 {[%emt 0:06:11]} Be7 {[%emt 0:19:52]} 18. Rd2 {[%emt 0:06:33]} O-O-O {[%emt 0:05:23]} 19. Rc1 {[%emt 0:07:35]} Kb8 {[%emt 0:05:52]} 20. Rcd1 {[%emt 0:08:57]} Bc8 {[%emt 0:04:46]} 21. Qb3 {[%emt 0:04:52]} Rxd2 {[%emt 0:04:12]} 22. Rxd2 {[%emt 0:00:07]} Be6 {[%emt 0:04:33]} 23. Qa4 {[%emt 0:01:04]} Rd8 {[%emt 0:02:02]} 24. Rxd8+ {[%emt 0:02:33]} Bxd8 {[%emt 0:00:22]} 25. Qa3 {[%emt 0:08:16]} Bxa5 {[%emt 0:06:29]} 26. Ne4 {[%emt 0:02:18]} Ka7 {[%emt 0:04:44]} 27. Nc5 {[%emt 0:09:36]} Bb6 {[%emt 0:01:13]} 28. Nxe6 {[%emt 0:02:44]} Qxe6 {[%emt 0:00:04]} 29. Qd3 {[%emt 0:00:46]} Qe5 {[%emt 0:02:48]} 30. e3 {[%emt 0:03:08]} Qxb2 {[%emt 0:02:15]} 31. Qxh7 {[%emt 0:00:10]} Qa1+ {[%emt 0:00:58]} 32. Bf1 {[%emt 0:00:04]} a5 {[%emt 0:00:07]} 33. Kg2 {[%emt 0:02:02]} Qb2 {[%emt 0:00:53]} 34. Qe4 {[%emt 0:05:38]} Bc5 {[%emt 0:00:47]} 35. h4 {[%emt 0:00:00]} gxh4 {[%emt 0:00:36]} 36. gxh4 {[%emt 0:00:00]} Qe5 {[%emt 0:00:38]} 37. Qa4 {[%emt 0:00:51]} Bb4 {[%emt 0:01:23]} 38. Qd1 {[%emt 0:00:27]} Qe4+ {[%emt 0:00:27]} 39. Kh3 {[%emt 0:00:05]} Qh1+ {[%emt 0:01:08]} 40. Kg3 {[%emt 0:00:56]} Qg1+ {[%emt 0:00:26]} 41. Kf3 {[%emt 0:30:09]} f5 {[%emt 0:08:07]} 42. Qd4+ {[%emt 0:00:00]} c5 {[%emt 0:00:37]} 43. Qc4 {[%emt 0:00:00]} a4 {[%emt 0:02:16]} 44. Bg2 {[%emt 0:00:00]} Qd1+ {[%emt 0:04:11]} 45. Kg3 {[%emt 0:00:00]} Qg4+ {[%emt 0:00:36]} 46. Qxg4 {[%emt 0:00:00]} fxg4 {[%emt 0:00:03]} 47. Kf4 {[%emt 0:00:00]} c4 {[%emt 0:01:14]} 48. h5 {[%emt 0:00:00]} a3 {[%emt 0:00:26]} 49. h6 {[%emt 0:00:00]} a2 {[%emt 0:00:14]} 50. h7 {[%emt 0:00:00]} a1=Q {[%emt 0:00:20]} 0-1

[Event "Dutch Open-ch 2019"]
[Site "Dieren"]
[Date "2019.07.25"]
[Round "3.17"]
[White "Tang, Charlie"]
[Black "Van Helvoort, Rob"]
[Result "0-1"]
[ECO "B06"]
[WhiteElo "2247"]
[BlackElo "2104"]
[Annotator "NA"]
[PlyCount "30"]
[EventDate "2019.07.23"]
[EventType "swiss"]
[EventCountry "NED"]
[SourceTitle "playchess.com"]
[Source "ChessBase"]
[SourceQuality "1"]
[TimeControl "40/5400+30:1800+30"]

1. e4 {[%emt 0:00:00]} g6 {[%emt 0:00:00]} 2. d4 {[%emt 0:00:00]} Bg7 {[%emt 0:00:00]} 3. Nc3 {[%emt 0:00:00]} d6 {[%emt 0:00:00]} 4. f4 {[%emt 0:00:02]} Nc6 {[%emt 0:00:00]} 5. Nf3 {[%emt 0:01:10]} Bg4 {[%emt 0:00:05]} 6. Be3 {[%emt 0:00:09]} Bxf3 {[%emt 0:00:07]} 7. gxf3 {[%emt 0:00:07]} e6 {[%emt 0:00:06]} 8. Qd2 {[%emt 0:05:52]} d5 {[%emt 0:00:33]} 9. O-O-O {[%emt 0:00:49]} Nge7 {[%emt 0:00:12]} 10. Bh3 {[%emt 0:05:16]} Qd7 {[%emt 0:02:28]} 11. Ne2 {[%emt 1:22:05]} f5 {[%emt 0:08:44]} 12. e5 {[%emt 0:00:00]} b5 {[%emt 0:12:12]} 13. Kb1 {[%emt 0:00:00]} Nc8 {[%emt 0:03:14]} 14. Nc1 {[%emt 0:00:00]} Nb6 {[%emt 0:00:35]} 15. Bf1 {[%emt 0:00:00]} Nc4 {[%emt 1:09:14]} 0-1

[Event "Dutch Open-ch 2019"]
[Site "Dieren"]
[Date "2019.07.25"]
[Round "3.18"]
[White "Ypma, Jord"]
[Black "Wedda, Dries"]
[Result "1-0"]
[ECO "E35"]
[WhiteElo "1968"]
[BlackElo "2234"]
[Annotator "NA"]
[PlyCount "87"]
[EventDate "2019.07.23"]
[EventType "swiss"]
[EventCountry "NED"]
[SourceTitle "playchess.com"]
[Source "ChessBase"]
[SourceQuality "1"]
[TimeControl "40/5400+30:1800+30"]

1. d4 {[%emt 0:00:00]} Nf6 {[%emt 0:00:00]} 2. c4 {[%emt 0:00:27]} e6 {[%emt 0:00:00]} 3. Nc3 {[%emt 0:00:48]} Bb4 {[%emt 0:00:00]} 4. Qc2 {[%emt 0:00:46]} d5 {[%emt 0:01:48]} 5. cxd5 {[%emt 0:01:05]} exd5 {[%emt 0:00:59]} 6. Bg5 {[%emt 0:00:24]} h6 {[%emt 0:00:18]} 7. Bh4 {[%emt 0:00:26]} Nc6 {[%emt 0:00:31]} 8. e3 {[%emt 0:04:21]} g5 {[%emt 0:01:06]} 9. Bg3 {[%emt 0:00:34]} h5 {[%emt 0:00:10]} 10. Bd3 {[%emt 0:09:11]} Qe7 {[%emt 0:02:46]} 11. Nge2 {[%emt 0:05:29]} h4 {[%emt 0:20:46]} 12. Be5 {[%emt 0:01:41]} Nxe5 {[%emt 0:08:33]} 13. dxe5 {[%emt 0:00:21]} Ng4 {[%emt 0:00:14]} 14. a3 {[%emt 0:20:52]} Bxc3+ {[%emt 0:00:49]} 15. Qxc3 {[%emt 0:00:30]} Qxe5 {[%emt 0:11:19]} 16. Bb5+ {[%emt 0:09:42]} Kf8 {[%emt 0:07:33]} 17. Qb4+ {[%emt 0:03:37]} Kg7 {[%emt 0:00:32]} 18. Bd3 {[%emt 0:03:44]} Re8 {[%emt 0:08:59]} 19. Qd2 {[%emt 0:04:24]} Bd7 {[%emt 0:05:38]} 20. h3 {[%emt 0:01:19]} Nf6 {[%emt 0:00:28]} 21. O-O {[%emt 0:00:53]} c5 {[%emt 0:04:05]} 22. Rad1 {[%emt 0:02:15]} Bc6 {[%emt 0:01:04]} 23. b4 {[%emt 0:02:18]} c4 {[%emt 0:04:34]} 24. Bb1 {[%emt 0:00:39]} a5 {[%emt 0:00:40]} 25. Nd4 {[%emt 0:02:21]} g4 {[%emt 0:06:26]} 26. Nf5+ {[%emt 0:02:23]} Kf8 {[%emt 0:00:36]} 27. e4 {[%emt 0:01:21]} Ng8 {[%emt 0:00:27]} 28. exd5 {[%emt 0:02:21]} Bd7 {[%emt 0:00:01]} 29. hxg4 {[%emt 0:01:05]} Bxf5 {[%emt 0:00:52]} 30. Bxf5 {[%emt 0:00:33]} h3 {[%emt 0:02:50]} 31. gxh3 {[%emt 0:02:07]} axb4 {[%emt 0:01:27]} 32. Qxb4+ {[%emt 0:00:36]} Kg7 {[%emt 0:00:02]} 33. Rfe1 {[%emt 0:02:00]} Qf6 {[%emt 0:00:17]} 34. Rxe8 {[%emt 0:00:42]} Rxe8 {[%emt 0:00:01]} 35. Qxc4 {[%emt 0:01:28]} Nh6 {[%emt 0:00:31]} 36. Qf4 {[%emt 0:01:11]} Kf8 {[%emt 0:03:12]} 37. d6 {[%emt 0:02:05]} Nxf5 {[%emt 0:00:06]} 38. Qxf5 {[%emt 0:01:06]} Qc3 {[%emt 0:00:23]} 39. d7 {[%emt 0:00:55]} Re1+ {[%emt 0:00:09]} 40. Rxe1 {[%emt 0:00:08]} Qxe1+ {[%emt 0:00:01]} 41. Kg2 {[%emt 0:31:11]} Ke7 {[%emt 0:30:30]} 42. Qd5 {[%emt 0:00:54]} Kd8 {[%emt 0:00:20]} 43. Qxb7 {[%emt 0:00:33]} Ke7 {[%emt 0:00:04]} 44. Qb4+ {[%emt 0:00:11]} 1-0

[Event "Dutch Open-ch 2019"]
[Site "Dieren"]
[Date "2019.07.25"]
[Round "3.19"]
[White "Elgersma, Onno"]
[Black "Grutter, Tim"]
[Result "1/2-1/2"]
[ECO "B48"]
[WhiteElo "2232"]
[BlackElo "2091"]
[Annotator "NA"]
[PlyCount "135"]
[EventDate "2019.07.23"]
[EventType "swiss"]
[EventCountry "NED"]
[SourceTitle "playchess.com"]
[Source "ChessBase"]
[SourceQuality "1"]
[TimeControl "40/5400+30:1800+30"]

1. e4 {[%emt 0:00:00]} c5 {[%emt 0:00:00]} 2. Nf3 {[%emt 0:00:00]} e6 {[%emt 0:00:00]} 3. d4 {[%emt 0:00:00]} cxd4 {[%emt 0:00:00]} 4. Nxd4 {[%emt 0:00:00]} Nc6 {[%emt 0:00:00]} 5. Nc3 {[%emt 0:00:00]} Qc7 {[%emt 0:00:00]} 6. Be3 {[%emt 0:00:07]} a6 {[%emt 0:00:02]} 7. Qd2 {[%emt 0:00:09]} Nf6 {[%emt 0:00:04]} 8. f4 {[%emt 0:00:12]} Bb4 {[%emt 0:02:46]} 9. Bd3 {[%emt 0:00:27]} Na5 {[%emt 0:05:35]} 10. a3 {[%emt 0:00:54]} Bxc3 {[%emt 0:01:39]} 11. Qxc3 {[%emt 0:00:05]} Qxc3+ {[%emt 0:00:08]} 12. bxc3 {[%emt 0:00:05]} d6 {[%emt 0:12:49]} 13. O-O {[%emt 0:08:22]} Bd7 {[%emt 0:04:49]} 14. Nb3 {[%emt 0:22:18]} Nxb3 {[%emt 0:04:33]} 15. cxb3 {[%emt 0:00:02]} Bc6 {[%emt 0:00:20]} 16. e5 {[%emt 0:00:24]} dxe5 {[%emt 0:02:55]} 17. fxe5 {[%emt 0:00:04]} Nd5 {[%emt 0:01:20]} 18. Bd4 {[%emt 0:01:12]} Rd8 {[%emt 0:04:22]} 19. Rad1 {[%emt 0:03:26]} O-O {[%emt 0:11:46]} 20. c4 {[%emt 0:05:52]} Ne7 {[%emt 0:06:05]} 21. Bc5 {[%emt 0:01:30]} Rd7 {[%emt 0:00:40]} 22. Bxh7+ {[%emt 0:10:47]} Kxh7 {[%emt 0:00:15]} 23. Rxd7 {[%emt 0:00:05]} Bxd7 {[%emt 0:00:08]} 24. Bxe7 {[%emt 0:00:05]} Re8 {[%emt 0:00:16]} 25. Bd6 {[%emt 0:01:36]} Kg6 {[%emt 0:00:39]} 26. Rf4 {[%emt 0:09:00]} f6 {[%emt 0:02:54]} 27. Rg4+ {[%emt 0:10:48]} Kf7 {[%emt 0:00:19]} 28. Rh4 {[%emt 0:04:52]} Bc6 {[%emt 0:01:18]} 29. a4 {[%emt 0:00:46]} Rd8 {[%emt 0:02:04]} 30. Rd4 {[%emt 0:00:11]} Rh8 {[%emt 0:01:49]} 31. h4 {[%emt 0:06:05]} Rh5 {[%emt 0:01:31]} 32. Rf4 {[%emt 0:00:45]} Rf5 {[%emt 0:05:58]} 33. Rxf5 {[%emt 0:02:07]} exf5 {[%emt 0:01:18]} 34. Kf2 {[%emt 0:01:03]} Be4 {[%emt 0:01:25]} 35. exf6 {[%emt 0:04:19]} Kxf6 {[%emt 0:00:51]} 36. b4 {[%emt 0:00:36]} Bc2 {[%emt 0:00:42]} 37. a5 {[%emt 0:00:38]} Bb3 {[%emt 0:00:51]} 38. c5 {[%emt 0:00:21]} Bd5 {[%emt 0:00:23]} 39. Bf4 {[%emt 0:01:29]} g6 {[%emt 0:00:51]} 40. g3 {[%emt 0:02:16]} Bc6 {[%emt 0:00:36]} 41. Ke3 {[%emt 0:30:08]} Ke6 {[%emt 0:30:31]} 42. Kd4 {[%emt 0:00:17]} Bb5 {[%emt 0:00:31]} 43. Bg5 {[%emt 0:00:35]} Bc6 {[%emt 0:00:16]} 44. Bd8 {[%emt 0:00:36]} Bb5 {[%emt 0:00:26]} 45. Bb6 {[%emt 0:02:11]} Bc6 {[%emt 0:01:49]} 46. Bc7 {[%emt 0:00:52]} Bb5 {[%emt 0:01:36]} 47. Bd6 {[%emt 0:00:23]} Bf1 {[%emt 0:02:20]} 48. Ke3 {[%emt 0:01:53]} Kd5 {[%emt 0:00:57]} 49. Kf4 {[%emt 0:00:49]} Be2 {[%emt 0:00:25]} 50. Bf8 {[%emt 0:02:08]} Bd1 {[%emt 0:00:28]} 51. Kg5 {[%emt 0:00:27]} Bh5 {[%emt 0:00:05]} 52. Kf6 {[%emt 0:00:00]} Kc6 {[%emt 0:00:00]} 53. Ke6 {[%emt 0:00:00]} Be2 {[%emt 0:00:00]} 54. Bg7 {[%emt 0:00:00]} Bd1 {[%emt 0:00:00]} 55. Bc3 {[%emt 0:00:00]} Be2 {[%emt 0:00:00]} 56. Be1 {[%emt 0:00:00]} Bd1 {[%emt 0:00:00]} 57. Kf6 {[%emt 0:00:00]} Bh5 {[%emt 0:00:00]} 58. Kg5 {[%emt 0:00:00]} Kb5 {[%emt 0:00:00]} 59. g4 {[%emt 0:00:00]} fxg4 {[%emt 0:00:00]} 60. Kf4 {[%emt 0:00:00]} g3 {[%emt 0:00:00]} 61. Kxg3 {[%emt 0:00:00]} Bd1 {[%emt 0:00:00]} 62. Kf4 {[%emt 0:00:00]} Bc2 {[%emt 0:00:00]} 63. Kg5 {[%emt 0:00:00]} Kc6 {[%emt 0:00:00]} 64. Kf6 {[%emt 0:00:00]} Bb1 {[%emt 0:00:00]} 65. Ke7 {[%emt 0:00:00]} Bc2 {[%emt 0:00:00]} 66. Kd8 {[%emt 0:00:00]} Bf5 {[%emt 0:00:00]} 67. Bd2 {[%emt 0:00:00]} Bg4 {[%emt 0:00:00]} 68. Be1 {[%emt 0:00:00]} 1/2-1/2

[Event "Dutch Open-ch 2019"]
[Site "Dieren"]
[Date "2019.07.25"]
[Round "3.20"]
[White "Mesman, Edwyn"]
[Black "Nair, Sanjeev"]
[Result "0-1"]
[ECO "E90"]
[WhiteElo "2204"]
[BlackElo "2045"]
[Annotator "NA"]
[PlyCount "80"]
[EventDate "2019.07.23"]
[EventType "swiss"]
[EventCountry "NED"]
[SourceTitle "playchess.com"]
[Source "ChessBase"]
[SourceQuality "1"]
[TimeControl "40/5400+30:1800+30"]

1. d4 {[%emt 0:00:00]} Nf6 {[%emt 0:00:00]} 2. c4 {[%emt 0:00:00]} g6 {[%emt 0:00:00]} 3. Nc3 {[%emt 0:00:11]} Bg7 {[%emt 0:00:00]} 4. e4 {[%emt 0:00:18]} d6 {[%emt 0:00:00]} 5. Nf3 {[%emt 0:00:45]} O-O {[%emt 0:00:14]} 6. h3 {[%emt 0:00:21]} e5 {[%emt 0:01:42]} 7. d5 {[%emt 0:00:13]} a5 {[%emt 0:03:18]} 8. g4 {[%emt 0:00:36]} Na6 {[%emt 0:01:08]} 9. Be3 {[%emt 0:00:56]} Nd7 {[%emt 0:01:13]} 10. Rg1 {[%emt 0:05:06]} Ndc5 {[%emt 0:03:26]} 11. Nd2 {[%emt 0:06:30]} Bd7 {[%emt 0:06:46]} 12. a3 {[%emt 0:08:24]} a4 {[%emt 0:05:33]} 13. Qc2 {[%emt 0:02:04]} c6 {[%emt 0:00:51]} 14. Be2 {[%emt 0:09:20]} Qa5 {[%emt 0:09:50]} 15. Kf1 {[%emt 0:02:54]} Kh8 {[%emt 0:03:23]} 16. Kg2 {[%emt 1:00:22]} f5 {[%emt 0:11:52]} 17. f3 {[%emt 0:00:00]} f4 {[%emt 0:04:00]} 18. Bf2 {[%emt 0:00:00]} Bf6 {[%emt 0:00:34]} 19. h4 {[%emt 0:00:00]} h5 {[%emt 0:00:53]} 20. g5 {[%emt 0:00:00]} Bd8 {[%emt 0:06:21]} 21. Rgb1 {[%emt 0:00:00]} cxd5 {[%emt 0:09:13]} 22. cxd5 {[%emt 0:00:00]} Rc8 {[%emt 0:01:23]} 23. Rc1 {[%emt 0:00:00]} Be7 {[%emt 0:07:28]} 24. Rab1 {[%emt 0:00:00]} Qd8 {[%emt 0:05:30]} 25. b4 {[%emt 0:00:00]} axb3 {[%emt 0:02:25]} 26. Nxb3 {[%emt 0:00:00]} Nxe4 {[%emt 0:05:52]} 27. Qxe4 {[%emt 0:01:12]} Bf5 {[%emt 0:00:52]} 28. Qa4 {[%emt 0:00:14]} Rxc3 {[%emt 0:00:15]} 29. Rxc3 {[%emt 0:00:56]} Bxb1 {[%emt 0:00:13]} 30. Bd3 {[%emt 0:00:57]} Bxd3 {[%emt 0:01:53]} 31. Rxd3 {[%emt 0:00:04]} Qc8 {[%emt 0:02:47]} 32. Qe4 {[%emt 0:01:28]} Kg7 {[%emt 0:01:58]} 33. Rd1 {[%emt 0:02:59]} Qd7 {[%emt 0:03:05]} 34. Nd2 {[%emt 0:00:37]} Rc8 {[%emt 0:00:27]} 35. Qb1 {[%emt 0:00:31]} Rc3 {[%emt 0:02:31]} 36. Ne4 {[%emt 0:00:28]} Rxa3 {[%emt 0:00:20]} 37. Qb6 {[%emt 0:00:33]} Rxf3 {[%emt 0:00:21]} 38. Nf6 {[%emt 0:00:02]} Qh3+ {[%emt 0:00:44]} 39. Kg1 {[%emt 0:00:04]} Rb3 {[%emt 0:00:34]} 40. Ne8+ {[%emt 0:00:47]} Kh7 {[%emt 0:00:21]} 0-1

[Event "Dutch Open-ch 2019"]
[Site "Dieren"]
[Date "2019.07.26"]
[Round "4.1"]
[White "Pruijssers, Roeland"]
[Black "Beerdsen, Thomas"]
[Result "0-1"]
[ECO "A36"]
[WhiteElo "2534"]
[BlackElo "2497"]
[Annotator "ChessBase"]
[PlyCount "74"]
[EventDate "2019.07.23"]
[EventType "swiss"]
[EventCountry "NED"]
[SourceTitle "playchess.com"]
[Source "ChessBase"]
[SourceQuality "1"]
[TimeControl "40/5400+30:1800+30"]

1. c4 {[%emt 0:00:00]} c5 {[%emt 0:10:56]} 2. g3 {[%emt 0:00:00]} g6 {[%emt 0:01:52]} 3. Bg2 {[%emt 0:00:09]} Bg7 {[%emt 0:00:06]} 4. Nc3 {[%emt 0:00:05]} Nc6 {[%emt 0:00:28]} 5. a3 {[%emt 0:00:19]} e6 {[%emt 0:05:36]} 6. Rb1 {[%emt 0:01:23]} Nge7 {[%emt 0:01:24]} 7. b4 {[%emt 0:01:13]} cxb4 {[%emt 0:05:03]} 8. axb4 {[%emt 0:01:18]} O-O {[%emt 0:00:14]} 9. b5 {[%emt 0:21:05]} Na5 {[%emt 0:12:58]} 10. Qa4 {[%emt 0:02:20]} d5 {[%emt 0:02:33]} 11. cxd5 {[%emt 0:04:32]} Nxd5 {[%emt 0:00:43]} 12. Nxd5 {[%emt 0:04:00]} exd5 {[%emt 0:00:12]} 13. Nf3 {[%emt 0:00:06]} Re8 {[%emt 0:04:30]} 14. d3 {[%emt 0:03:13]} Bf5 {[%emt 0:05:06]} 15. Kf1 {[%emt 0:03:45]} Rc8 {[%emt 0:01:47]} 16. Be3 {[%emt 0:13:46]} Nc4 {[%emt 0:07:52]} 17. Bg5 {[%emt 0:03:40]} Qb6 {[%emt 0:03:00]} 18. Qb3 {[%emt 0:07:40]} Nd6 {[%emt 0:03:50]} 19. Be3 {[%emt 0:09:47]} Rxe3 {[%emt 0:02:22]} 20. fxe3 {[%emt 0:00:05]} Qxe3 {[%emt 0:00:52]} 21. Qxd5 {[%emt 0:01:03]} Re8 {[%emt 0:11:42]} 22. Qa2 {[%emt 0:09:05]} Bxd3 {[%emt 0:05:50]} 23. exd3 {[%emt 0:00:07]} Qxd3+ {[%emt 0:00:04]} 24. Kg1 {[%emt 0:00:06]} Re2 {[%emt 0:00:07]} 25. Qxe2 {[%emt 0:00:14]} Qxe2 {[%emt 0:00:04]} 26. h4 {[%emt 0:00:36]} Nf5 {[%emt 0:03:17]} 27. Re1 {[%emt 0:01:39]} Bd4+ {[%emt 0:00:12]} 28. Kh2 {[%emt 0:00:05]} Qf2 {[%emt 0:00:06]} 29. Rhf1 {[%emt 0:00:37]} Qxg3+ {[%emt 0:00:05]} 30. Kh1 {[%emt 0:00:04]} Bb6 {[%emt 0:01:21]} 31. Re8+ {[%emt 0:02:25]} Kg7 {[%emt 0:00:07]} 32. Re4 {[%emt 0:00:14]} Ne3 {[%emt 0:02:15]} 33. Rxe3 {[%emt 0:11:49]} Bxe3 {[%emt 0:00:05]} 34. Re1 {[%emt 0:00:00]} Bc5 {[%emt 0:00:31]} 35. Re4 {[%emt 0:00:00]} h6 {[%emt 0:01:03]} 36. Rc4 {[%emt 0:00:00]} Bd6 {[%emt 0:01:02]} 37. Nd2 {[%emt 0:00:00]} Qh2# {[%emt 0:00:04]} 0-1